bitfinex/quotes_BTCUSD_20251205
["timestamp","ask_amount","ask_price","bid_price","bid_amount"]
[1764955790192,0.01125682,88835.0,88829.0,0.42149412]
[1764955790829,0.01125695,88834.0,88829.0,0.42149412]
[1764955791002,0.01125682,88835.0,88829.0,0.42149412]
[1764955791854,0.01125631,88839.0,88829.0,0.42149412]
[1764955791993,0.01125644,88838.0,88829.0,0.42149412]
[1764955792198,0.22513947,88834.0,88829.0,0.42149412]
[1764955792395,0.01125695,88834.0,88829.0,0.42149412]
[1764955792619,0.01125707,88833.0,88829.0,0.42149412]
[1764955792819,0.0112572,88832.0,88829.0,0.42149412]
[1764955793022,0.22554648,88830.0,88829.0,0.19634243]
[1764955793227,0.00039732,88830.0,88829.0,0.42149412]
[1764955795499,0.00039732,88830.0,88829.0,0.19634243]
[1764955795749,0.00039732,88830.0,88829.0,0.42149412]
[1764955796299,0.26270631,88830.0,88829.0,0.13942956]
[1764955796443,0.24616737,88830.0,88829.0,0.13942956]
[1764955796629,0.23563648,88830.0,88829.0,0.13942956]
[1764955796827,0.23563648,88830.0,88829.0,0.13742956]
[1764955797169,0.24616792,88830.0,88829.0,0.13942956]
[1764955797780,0.24716792,88830.0,88829.0,0.13942956]
[1764955797960,0.24716792,88830.0,88829.0,0.13742956]
[1764955799214,0.24816792,88830.0,88829.0,0.13742956]
[1764955799440,0.25738792,88830.0,88829.0,0.13742956]
[1764955799643,0.22518465,88816.0,88815.0,0.01823]
[1764955799854,0.22518262,88817.0,88815.0,0.05143935]
[1764955800071,0.22518465,88816.0,88815.0,0.04018]
[1764955800296,0.22518465,88816.0,88815.0,0.01823]
[1764955800527,0.22521508,88804.0,88801.0,0.05158]
[1764955800739,0.22521508,88804.0,88801.0,0.01823]
[1764955801142,0.22521508,88804.0,88803.0,0.03952]
[1764955801304,0.03553856,88808.0,88803.0,0.03952]
[1764955801508,0.23646317,88809.0,88807.0,0.02195]
[1764955801689,0.22521508,88804.0,88803.0,0.01757]
[1764955802118,0.22521359,88805.0,88803.0,0.07287]
[1764955802463,0.22521134,88806.0,88804.0,0.02195]
[1764955802664,0.0112605,88806.0,88804.0,0.02195]
[1764955802864,0.0112605,88806.0,88805.0,0.05389]
[1764955803487,0.22521284,88805.0,88803.0,0.01757]
[1764955803643,0.01126012,88809.0,88804.0,0.03141]
[1764955803875,0.0112591,88817.0,88814.0,0.22518972]
[1764955804080,0.93295793,88830.0,88822.0,0.01125847]
[1764955804081,0.01125771,88828.0,88822.0,0.01125847]
[1764955804278,0.01125796,88826.0,88822.0,0.01287134]
[1764955804604,0.01125809,88825.0,88822.0,0.01287134]
[1764955804796,0.01125809,88825.0,88822.0,0.03302287]
[1764955804980,0.22516436,88824.0,88822.0,0.00161287]
[1764955805164,0.23641898,88826.0,88822.0,0.00161287]
[1764955805365,0.2251578,88827.0,88825.0,0.02248]
[1764955805579,0.01125771,88828.0,88826.0,0.02248]
[1764955805784,0.22516183,88825.0,88822.0,0.00161287]
[1764955806405,0.01125809,88825.0,88822.0,0.00161287]
[1764955806606,0.2251669,88823.0,88822.0,0.00161287]
[1764955806904,0.01125809,88825.0,88822.0,0.00161287]
[1764955807054,0.2251403,88834.0,88822.0,0.00161287]
[1764955807055,0.02425518,88833.0,88829.0,0.22515169]
[1764955807401,0.04951535,88846.0,88829.0,0.22515169]
[1764955807402,0.2363925,88836.0,88829.0,0.24924456]
[1764955807578,0.01125682,88835.0,88829.0,0.28065456]
[1764955807783,0.01125682,88835.0,88829.0,0.05550287]
[1764955807784,0.01125695,88834.0,88829.0,0.05550287]
[1764955807938,0.22514842,88831.0,88829.0,0.00161287]
[1764955808142,0.0112572,88832.0,88823.0,0.15534956]
[1764955808143,0.22516183,88825.0,88823.0,0.15534956]
[1764955808342,0.05357358,88830.0,88823.0,0.15534956]
[1764955808343,0.00039732,88830.0,88829.0,0.02248]
[1764955808874,0.00039732,88830.0,88829.0,0.05389]
[1764955809446,0.00039732,88830.0,88829.0,0.05489]
[1764955809650,0.00039732,88830.0,88829.0,0.28004169]
[1764955810687,0.00039732,88830.0,88829.0,0.02509287]
[1764955810884,0.00039732,88830.0,88829.0,0.28165456]
[1764955811374,0.22554648,88830.0,88829.0,0.05650287]
[1764955811577,0.00039732,88830.0,88829.0,0.001]
[1764955811939,0.00039732,88830.0,88829.0,0.43700412]
[1764955812063,0.00039732,88830.0,88829.0,0.43600412]
[1764955812268,0.01125505,88849.0,88846.0,0.23636219]
[1764955812507,0.01125505,88849.0,88843.0,0.01125581]
[1764955812508,0.2251088,88846.0,88843.0,0.01125581]
[1764955812679,0.00011912,88849.0,88848.0,0.03917]
[1764955812882,0.00011912,88849.0,88848.0,0.26427354]
[1764955813106,0.00011912,88849.0,88848.0,0.29729641]
[1764955813288,0.00011912,88849.0,88848.0,0.07219287]
[1764955813679,0.00011912,88849.0,88848.0,0.29729641]
[1764955814326,0.00011912,88849.0,88848.0,0.29929641]
[1764955814501,0.00011912,88849.0,88848.0,0.07419287]
[1764955814707,0.00011912,88849.0,88848.0,0.29929641]
[1764955814913,0.00011912,88849.0,88848.0,0.07419287]
[1764955815330,0.22770005,88849.0,88848.0,0.002]
[1764955815497,0.22522013,88849.0,88848.0,0.002]
[1764955816101,0.22511621,88843.0,88842.0,0.01669]
[1764955816304,0.0112572,88832.0,88828.0,0.13742956]
[1764955816554,0.01125682,88835.0,88831.0,0.23640242]
[1764955816732,0.22511712,88843.0,88832.0,0.22514338]
[1764955816933,0.01125555,88845.0,88842.0,0.02248]
[1764955817131,0.23636909,88845.0,88842.0,0.02248]
[1764955817334,0.22722034,88849.0,88842.0,0.02248]
[1764955817335,0.01125517,88848.0,88844.0,0.05042568]
[1764955817537,0.22511114,88845.0,88844.0,0.01669]
[1764955817768,0.22514155,88833.0,88832.0,0.00161287]
[1764955818495,0.01125644,88838.0,88833.0,0.01125707]
[1764955818645,0.23638,88840.0,88837.0,0.02248]
[1764955818817,0.23638,88840.0,88836.0,0.22513265]
[1764955819024,0.23638,88840.0,88835.0,0.03141]
[1764955819025,0.01125631,88839.0,88835.0,0.03141]
[1764955819297,0.01125631,88839.0,88832.0,0.00161287]
[1764955819298,0.23638873,88837.0,88836.0,0.03141]
[1764955819422,0.22514155,88833.0,88832.0,0.00361287]
[1764955819826,0.22514155,88833.0,88832.0,0.00161287]
[1764955820268,0.22514155,88833.0,88832.0,0.02409287]
[1764955820469,0.2251396,88834.0,88832.0,0.02409287]
[1764955820625,0.23638782,88838.0,88833.0,0.02248]
[1764955820824,0.22514155,88833.0,88832.0,0.00361287]
[1764955821041,0.22514155,88833.0,88832.0,0.002]
[1764955821670,0.22514155,88833.0,88832.0,0.02448]
[1764955821877,0.01125682,88835.0,88832.0,0.05589]
[1764955822128,0.22513488,88836.0,88834.0,0.02248]
[1764955822332,0.01125581,88843.0,88834.0,0.02248]
[1764955822333,0.01125555,88845.0,88841.0,0.23637612]
[1764955822536,0.2363726,88843.0,88842.0,0.01669]
[1764955822738,0.2363726,88843.0,88834.0,0.00161287]
[1764955822739,0.22513648,88835.0,88834.0,0.00161287]
[1764955822943,0.22514155,88833.0,88832.0,0.01869]
[1764955823283,0.22514155,88833.0,88832.0,0.01669]
[1764955823651,0.22514155,88833.0,88832.0,0.01769]
[1764955823844,0.01125619,88840.0,88835.0,0.01125682]
[1764955824194,0.00962,88855.0,88832.0,0.07058]
[1764955824195,0.01125669,88836.0,88833.0,0.22513936]
[1764955824342,0.01125682,88835.0,88832.0,0.01669]
[1764955824541,0.23639037,88837.0,88833.0,0.23639853]
[1764955824749,0.22512522,88840.0,88836.0,0.02248]
[1764955825101,0.01125581,88843.0,88840.0,0.22512153]
[1764955825300,0.23636432,88846.0,88843.0,0.26428621]
[1764955825415,0.01125479,88851.0,88846.0,0.01125543]
[1764955825618,0.01125429,88855.0,88846.0,0.01125543]
[1764955825619,0.01125365,88860.0,88848.0,0.24758354]
[1764955825860,0.01373357,88860.0,88848.0,0.24919641]
[1764955826073,0.01373357,88860.0,88848.0,0.28060641]
[1764955826426,0.00247992,88860.0,88848.0,0.28060641]
[1764955826639,0.23632289,88862.0,88848.0,0.41803597]
[1764955826844,0.01125378,88859.0,88848.0,0.41803597]
[1764955827152,0.01125239,88870.0,88848.0,0.36505113]
[1764955827351,0.23631642,88864.0,88848.0,0.3431294]
[1764955827650,0.01125365,88860.0,88848.0,0.28060641]
[1764955827864,0.23632449,88861.0,88848.0,0.28060641]
[1764955828268,0.22505335,88868.0,88848.0,0.29848641]
[1764955828470,0.23629848,88871.0,88848.0,0.32040814]
[1764955828688,0.01125264,88868.0,88848.0,0.32040814]
[1764955828896,0.01125302,88865.0,88848.0,0.32040814]
[1764955829157,0.01125277,88867.0,88848.0,0.32040814]
[1764955829361,0.01125289,88866.0,88848.0,0.32040814]
[1764955829888,0.01125327,88863.0,88848.0,0.29848641]
[1764955830089,0.01125353,88861.0,88848.0,0.29848641]
[1764955830231,0.01125302,88865.0,88848.0,0.32140814]
[1764955830430,0.01125327,88863.0,88848.0,0.29948641]
[1764955830781,0.01125353,88861.0,88848.0,0.29948641]
[1764955830999,0.01125213,88872.0,88848.0,0.29948641]
[1764955831201,0.01125163,88876.0,88848.0,0.6850094]
[1764955831394,0.2362879,88875.0,88848.0,0.70693113]
[1764955831594,0.01125163,88876.0,88848.0,0.70693113]
[1764955831765,0.0112515,88877.0,88848.0,0.70693113]
[1764955831964,0.01125125,88879.0,88848.0,0.70693113]
[1764955832129,0.01125188,88874.0,88848.0,0.70793113]
[1764955832336,0.01125175,88875.0,88848.0,0.70793113]
[1764955832587,0.00753,88891.0,88848.0,0.70793113]
[1764955832826,0.66048118,88894.0,88848.0,0.70793113]
[1764955832827,0.22503371,88876.0,88848.0,0.70693113]
[1764955833100,0.22503259,88877.0,88848.0,0.84736069]
[1764955833414,0.22503259,88877.0,88848.0,0.86636069]
[1764955833415,0.00111912,88849.0,88848.0,0.86636069]
[1764955833761,0.00011912,88849.0,88848.0,0.84736069]
[1764955833975,0.00111912,88849.0,88848.0,0.86636069]
[1764955834579,0.01125036,88886.0,88883.0,0.22501398]
[1764955834780,0.23636139,88886.0,88884.0,0.15240044]
[1764955835168,0.23636139,88886.0,88885.0,0.02077]
[1764955835544,0.00010294,88886.0,88885.0,0.27793984]
[1764955835879,0.00410294,88886.0,88885.0,0.27793984]
[1764955836270,0.00110294,88886.0,88885.0,0.27955271]
[1764955836480,0.00410294,88886.0,88885.0,0.27955271]
[1764955836705,0.00410294,88886.0,88885.0,0.05454287]
[1764955836902,0.00110294,88886.0,88885.0,0.05454287]
[1764955837102,0.00210294,88886.0,88885.0,0.07081]
[1764955837307,0.00110294,88886.0,88885.0,0.07081]
[1764955837548,0.00110294,88886.0,88885.0,0.03865]
[1764955837748,0.00110294,88886.0,88881.0,0.01125099]
[1764955837749,0.22502316,88880.0,88877.0,0.01609]
[1764955837951,0.22502756,88878.0,88877.0,0.01609]
[1764955839267,0.22502756,88878.0,88877.0,0.03686]
[1764955839463,0.22002756,88878.0,88877.0,0.03686]
[1764955840118,0.22002756,88878.0,88877.0,0.03786]
[1764955840338,0.01125049,88885.0,88882.0,0.01125087]
[1764955840539,0.23626084,88885.0,88884.0,0.02077]
[1764955840940,0.00010294,88886.0,88884.0,0.05293]
[1764955841260,0.00010294,88886.0,88885.0,0.02077]
[1764955841856,0.00010294,88886.0,88874.0,0.01125188]
[1764955841857,0.13281622,88879.0,88874.0,0.01125188]
[1764955842080,0.01125061,88884.0,88874.0,0.01125188]
[1764955842081,0.01125087,88882.0,88879.0,0.01125125]
[1764955842282,0.01125087,88882.0,88878.0,0.02077]
[1764955842283,0.2362726,88881.0,88878.0,0.02077]
[1764955842479,0.01125112,88880.0,88877.0,0.01609]
[1764955842829,0.2362726,88881.0,88877.0,0.01609]
[1764955843031,0.323,88894.0,88885.0,0.22500984]
[1764955843179,0.01124884,88898.0,88885.0,0.27955271]
[1764955843382,0.23622346,88899.0,88885.0,0.29743271]
[1764955843696,0.01124922,88895.0,88885.0,0.29743271]
[1764955844107,0.23622919,88897.0,88885.0,0.29743271]
[1764955844304,0.01124884,88898.0,88885.0,0.29743271]
[1764955844511,0.01124859,88900.0,88885.0,0.29743271]
[1764955844723,0.22497535,88899.0,88885.0,0.29843271]
[1764955844920,0.01124859,88900.0,88885.0,0.29843271]
[1764955845120,0.0112491,88896.0,88885.0,0.29843271]
[1764955845321,0.01124897,88897.0,88885.0,0.29843271]
[1764955845522,0.01124884,88898.0,88885.0,0.29843271]
[1764955845880,0.01124872,88899.0,88885.0,0.29743271]
[1764955846090,0.01124872,88899.0,88885.0,0.29943271]
[1764955846747,0.23622124,88900.0,88885.0,0.29943271]
[1764955847032,0.23622314,88899.0,88885.0,0.29943271]
[1764955847439,0.01124897,88897.0,88885.0,0.30043271]
[1764955847641,0.01124973,88891.0,88885.0,0.07542287]
[1764955847800,0.22511025,88886.0,88885.0,0.07542287]
[1764955848203,0.00010294,88886.0,88885.0,0.07542287]
[1764955848646,0.00010294,88886.0,88885.0,0.07442287]
[1764955848829,0.00010294,88886.0,88885.0,0.29943271]
[1764955849362,0.00010294,88886.0,88885.0,0.04026287]
[1764955849822,0.00010294,88886.0,88885.0,0.07193287]
[1764955850019,0.00010294,88886.0,88885.0,0.29794271]
[1764955850204,0.00010294,88886.0,88885.0,0.29694271]
[1764955851028,0.00010294,88886.0,88885.0,0.07193287]
[1764955851434,0.00010294,88886.0,88885.0,0.29694271]
[1764955851650,0.00010294,88886.0,88885.0,0.29794271]
[1764955852348,0.00010294,88886.0,88885.0,0.31986444]
[1764955852790,0.00010294,88886.0,88885.0,0.32086444]
[1764955853030,0.00010294,88886.0,88885.0,0.29794271]
[1764955853490,0.00010294,88886.0,88885.0,0.31986444]
[1764955853713,0.00010294,88886.0,88885.0,0.38238743]
[1764955853958,0.00010294,88886.0,88885.0,0.54814243]
[1764955854129,0.00010294,88886.0,88885.0,0.54914243]
[1764955854542,0.00010294,88886.0,88885.0,0.55014243]
[1764955854766,0.00010294,88886.0,88885.0,0.54814243]
[1764955854907,0.00010294,88886.0,88885.0,0.54714243]
[1764955855330,0.00010294,88886.0,88885.0,0.55114243]
[1764955855979,0.00010294,88886.0,88885.0,0.56667243]
[1764955856180,0.00110294,88886.0,88885.0,0.58567243]
[1764955857552,0.00889,88930.0,88914.0,0.22493645]
[1764955857773,0.01124467,88931.0,88914.0,0.28215932]
[1764955857974,0.23615639,88926.0,88914.0,0.31382932]
[1764955858203,0.02418971,88934.0,88914.0,0.46152638]
[1764955858406,0.00889,88944.0,88914.0,0.39827404]
[1764955858603,0.01124315,88943.0,88914.0,0.39827404]
[1764955858808,0.22484849,88949.0,88914.0,0.37635231]
[1764955858809,0.01124479,88930.0,88914.0,0.37635231]
[1764955859164,0.0112453,88926.0,88914.0,0.38039404]
[1764955859322,0.0112453,88926.0,88914.0,0.39827404]
[1764955859749,0.01124543,88925.0,88914.0,0.38039404]
[1764955860002,0.00407732,88915.0,88914.0,0.32476231]
[1764955860222,0.00307732,88915.0,88914.0,0.32476231]
[1764955860463,0.22801124,88915.0,88914.0,0.03773]
[1764955860632,0.00307732,88915.0,88914.0,0.0804]
[1764955860778,0.00307732,88915.0,88914.0,0.32321645]
[1764955860974,0.00307732,88915.0,88914.0,0.32721645]
[1764955861224,0.0002,88920.0,88914.0,0.32721645]
[1764955861225,0.0002,88920.0,88914.0,0.32882932]
[1764955861563,0.01124227,88950.0,88938.0,0.22487528]
[1764955861714,0.22484567,88950.0,88939.0,0.05561]
[1764955861913,0.01372231,88949.0,88939.0,0.08728]
[1764955862124,0.01124265,88947.0,88939.0,0.05561]
[1764955862297,0.00096246,88940.0,88939.0,0.05561]
[1764955862495,0.00096246,88940.0,88939.0,0.03341]
[1764955862816,0.00096246,88940.0,88934.0,0.01124429]
[1764955862817,0.01124391,88937.0,88934.0,0.0166]
[1764955863016,0.01220599,88940.0,88939.0,0.02052]
[1764955863017,0.0002,88940.0,88939.0,0.02052]
[1764955863182,0.0002,88940.0,88939.0,0.02213287]
[1764955863380,0.0002,88940.0,88939.0,0.05451287]
[1764955863593,0.0002,88940.0,88939.0,0.0764346]
[1764955863999,0.0002,88940.0,88939.0,0.13895759]
[1764955865323,0.0002,88940.0,88939.0,0.44003586]
[1764955865541,0.0002,88940.0,88939.0,0.48191259]
[1764955865872,0.0002,88940.0,88939.0,0.48791259]
[1764955866295,0.0002,88940.0,88939.0,0.48191259]
[1764955866827,0.0002,88970.0,88969.0,0.2247974]
[1764955867007,0.0002,88970.0,88969.0,0.303332]
[1764955867328,0.0002,88970.0,88969.0,0.31379027]
[1764955867529,0.0002,88970.0,88969.0,0.37631326]
[1764955867737,0.0002,88970.0,88969.0,0.39823499]
[1764955868155,0.0002,88970.0,88969.0,0.37631326]
[1764955868369,0.0002,88970.0,88969.0,0.39823499]
[1764955868572,0.00187685,88970.0,88969.0,0.37631326]
[1764955868778,0.00187685,88970.0,88969.0,0.39823499]
[1764955869243,0.00187685,88970.0,88969.0,0.29591027]
[1764955869443,0.00187685,88970.0,88969.0,0.08899287]
[1764955869642,0.00187685,88970.0,88969.0,0.03609287]
[1764955869790,0.00187685,88970.0,88969.0,0.03448]
[1764955869988,0.00187685,88970.0,88969.0,0.03948]
[1764955870356,0.23606624,88959.0,88956.0,0.0166]
[1764955870583,0.22482772,88957.0,88956.0,0.0166]
[1764955871546,0.01124277,88946.0,88942.0,0.02784328]
[1764955871774,0.01124138,88957.0,88956.0,0.0166]
[1764955872369,0.01123936,88973.0,88969.0,0.2247974]
[1764955872574,0.01123885,88977.0,88969.0,0.26481027]
[1764955872797,0.0002,88980.0,88969.0,0.29719027]
[1764955873361,0.0112386,88979.0,88969.0,0.29719027]
[1764955873568,0.0002,88980.0,88969.0,0.29719027]
[1764955873986,0.01123885,88977.0,88969.0,0.29719027]
[1764955874187,0.01123898,88976.0,88969.0,0.07839287]
[1764955874439,0.2247946,88971.0,88969.0,0.02813287]
[1764955874645,0.2247946,88971.0,88969.0,0.04901287]
[1764955874996,0.22476369,88983.0,88969.0,0.08139287]
[1764955875209,0.01123797,88984.0,88969.0,0.08139287]
[1764955875210,0.01123873,88978.0,88969.0,0.07839287]
[1764955875412,0.01123747,88988.0,88969.0,0.07839287]
[1764955875615,0.01123759,88987.0,88969.0,0.1003146]
[1764955875789,0.01123759,88987.0,88969.0,0.0943146]
[1764955875991,0.01123696,88992.0,88969.0,0.0943146]
[1764955875992,0.0112362,88998.0,88969.0,0.0943146]
[1764955876191,0.0002,89010.0,88969.0,0.30453465]
[1764955876192,0.00187685,88970.0,88969.0,0.30453465]
[1764955876873,0.00187685,88970.0,88969.0,0.30953465]
[1764955877217,0.00187685,88970.0,88969.0,0.20520993]
[1764955877345,0.00187685,88970.0,88969.0,0.22308993]
[1764955877545,0.00187685,88970.0,88969.0,0.23008993]
[1764955877740,0.00227477,88970.0,88969.0,0.22708993]
[1764955877974,0.00227477,88970.0,88969.0,0.23108993]
[1764955878186,0.00227477,88970.0,88969.0,0.25301166]
[1764955878535,0.00227477,88970.0,88969.0,0.24901166]
[1764955879070,0.00227477,88970.0,88969.0,0.31153465]
[1764955879531,0.00227477,88970.0,88969.0,0.30453465]
[1764955880557,0.00227477,88970.0,88969.0,0.32648965]
[1764955880877,0.00227477,88970.0,88969.0,0.32948965]
[1764955881278,0.00227477,88970.0,88969.0,0.22716493]
[1764955881475,0.00227477,88970.0,88969.0,0.22416493]
[1764955881815,0.00227477,88970.0,88969.0,0.19178493]
[1764955882064,0.00227477,88970.0,88969.0,0.19153206]
[1764955882426,0.00227477,88970.0,88969.0,0.18253206]
[1764955882768,0.00227477,88970.0,88969.0,0.016955]
[1764955882981,0.00227477,88970.0,88957.0,0.01124138]
[1764955882982,0.2248124,88964.0,88962.0,0.14769706]
[1764955883205,0.00059792,88970.0,88967.0,0.2360399]
[1764955883432,0.00059792,88970.0,88969.0,0.02052]
[1764955883643,0.00059792,88970.0,88969.0,0.04532213]
[1764955883855,0.00227477,88970.0,88969.0,0.07170213]
[1764955884056,0.00227477,88970.0,88969.0,0.05851287]
[1764955884430,0.00227477,88970.0,88969.0,0.00161287]
[1764955884837,0.00227477,88970.0,88967.0,0.23604257]
[1764955885097,0.00227477,88970.0,88969.0,0.92052]
[1764955885098,0.00059792,88970.0,88969.0,0.92052]
[1764955885444,0.00059792,88970.0,88969.0,0.95451287]
[1764955885630,0.00059792,88970.0,88969.0,1.10220993]
[1764955886556,0.00059792,88970.0,88969.0,0.95451287]
[1764955887335,0.00059792,88970.0,88969.0,0.9764346]
[1764955887472,0.00059792,88970.0,88969.0,0.97239287]
[1764955887670,0.00059792,88970.0,88969.0,0.97739287]
[1764955888218,0.00059792,88970.0,88969.0,1.0023146]
[1764955888617,0.00059792,88970.0,88969.0,1.06483759]
[1764955889368,0.00059792,88970.0,88969.0,1.38783759]
[1764955890040,0.00059792,88970.0,88969.0,1.38283759]
[1764955890264,0.00059792,88970.0,88969.0,1.37983759]
[1764955890438,0.00059792,88970.0,88969.0,1.27751287]
[1764955890656,0.00227477,88970.0,88969.0,1.29939287]
[1764955890933,0.00227477,88970.0,88969.0,1.3303146]
[1764955891114,0.00227477,88970.0,88969.0,1.3263146]
[1764955891435,0.00227477,88970.0,88969.0,1.30839287]
[1764955891643,0.00227477,88970.0,88969.0,1.29051287]
[1764955891818,0.00227477,88970.0,88969.0,1.30839287]
[1764955892006,0.00227477,88970.0,88969.0,1.30439287]
[1764955892340,0.00227477,88970.0,88969.0,1.13541027]
[1764955892745,0.00227477,88970.0,88969.0,0.91061287]
[1764955892746,0.22706964,88970.0,88969.0,0.91061287]
[1764955892945,0.00227477,88970.0,88969.0,0.91061287]
[1764955893340,0.00227477,88970.0,88969.0,0.93428287]
[1764955893532,0.00227477,88970.0,88969.0,0.96614287]
[1764955893734,0.00227477,88970.0,88969.0,0.92528287]
[1764955893976,0.00227477,88970.0,88969.0,0.93128287]
[1764955894103,0.00327477,88970.0,88969.0,0.93128287]
[1764955894304,0.00327477,88970.0,88969.0,0.92228287]
[1764955894522,0.00327477,88970.0,88969.0,0.95414287]
[1764955894726,0.00227477,88970.0,88969.0,0.95414287]
[1764955895689,0.00227477,88970.0,88969.0,0.9760646]
[1764955897899,0.00227477,88970.0,88969.0,0.9800646]
[1764955898233,0.00227477,88970.0,88969.0,0.9870646]
[1764955898800,0.00227477,88970.0,88969.0,0.9800646]
[1764955899431,0.00227477,88970.0,88969.0,0.9760646]
[1764955899779,0.00227477,88970.0,88969.0,0.9790646]
[1764955900186,0.00227477,88970.0,88969.0,0.9850646]
[1764955900591,0.00227477,88970.0,88969.0,0.96314287]
[1764955901005,0.00227477,88970.0,88969.0,1.20582027]
[1764955901202,0.00227477,88970.0,88969.0,0.91061287]
[1764955901400,0.00227477,88970.0,88969.0,1.14729027]
[1764955901620,0.00227477,88970.0,88969.0,1.16796027]
[1764955901980,0.00227477,88970.0,88969.0,0.903]
[1764955902191,0.22706964,88970.0,88969.0,0.903]
[1764955902411,0.22706964,88970.0,88969.0,0.9]
[1764955902818,0.00227477,88970.0,88969.0,1.1247974]
[1764955903362,0.00227477,88970.0,88969.0,1.1773274]
[1764955903991,0.00227477,88970.0,88969.0,1.17894027]
[1764955904376,0.00227477,88970.0,88969.0,1.200862]
[1764955904589,0.00227477,88970.0,88969.0,1.17894027]
[1764955905016,0.00227477,88970.0,88969.0,1.200862]
[1764955905230,0.00227477,88970.0,88969.0,1.17894027]
[1764955905428,0.00227477,88970.0,88969.0,1.200862]
[1764955905634,0.00227477,88970.0,88969.0,1.12641027]
[1764955905810,0.00227477,88970.0,88969.0,1.16496027]
[1764955906022,0.00227477,88970.0,88969.0,0.90161287]
[1764955906229,0.00227477,88970.0,88969.0,1.16496027]
[1764955906404,0.00227477,88970.0,88969.0,1.18194027]
[1764955906606,0.00227477,88970.0,88969.0,1.19982027]
[1764955906834,0.00227477,88970.0,88969.0,1.19682027]
[1764955907067,0.00227477,88970.0,88969.0,1.16496027]
[1764955907268,0.00227477,88970.0,88969.0,1.20198027]
[1764955907561,0.00227477,88970.0,88969.0,0.90161287]
[1764955907765,0.00227477,88970.0,88969.0,1.16597027]
[1764955907968,0.00227477,88970.0,88969.0,1.19699027]
[1764955908145,0.22706964,88970.0,88969.0,0.90161287]
[1764955908364,0.28717543,88970.0,88969.0,0.9]
[1764955908554,0.22706964,88970.0,88969.0,0.9]
[1764955909156,0.00227477,88970.0,88969.0,1.1464774]
[1764955909356,0.00227477,88970.0,88969.0,1.17911027]
[1764955910018,0.00227477,88970.0,88969.0,1.14809027]
[1764955910174,0.00227477,88970.0,88969.0,0.90161287]
[1764955910375,0.22706964,88970.0,88969.0,0.91949287]
[1764955910791,0.00227477,88970.0,88969.0,0.91949287]
[1764955910994,0.00227477,88970.0,88969.0,0.97219287]
[1764955911172,0.00227477,88970.0,88969.0,0.94117287]
[1764955911576,0.22706964,88970.0,88969.0,0.91949287]
[1764955911799,0.22706964,88970.0,88969.0,0.91788]
[1764955912124,0.00227477,88970.0,88969.0,1.1953774]
[1764955912324,0.00227477,88970.0,88969.0,1.1643574]
[1764955912479,0.00227477,88970.0,88969.0,1.1953774]
[1764955913489,0.00227477,88970.0,88969.0,1.19699027]
[1764955915261,0.00227477,88970.0,88969.0,1.19899027]
[1764955915466,0.00227477,88970.0,88969.0,1.220912]
[1764955915669,0.00227477,88970.0,88969.0,1.29043499]
[1764955916256,0.00227477,88970.0,88969.0,1.28843499]
[1764955916615,0.00227477,88970.0,88969.0,1.29143499]
[1764955917158,0.00227477,88970.0,88969.0,1.20699027]
[1764955917453,0.00227477,88970.0,88969.0,0.96431287]
[1764955917667,0.00227477,88970.0,88969.0,1.18911027]
[1764955917952,0.00227477,88970.0,88969.0,1.19699027]
[1764955918154,0.00227477,88970.0,88969.0,1.20299027]
[1764955918330,0.00227477,88970.0,88969.0,1.17497027]
[1764955918512,0.00227477,88970.0,88969.0,1.16897027]
[1764955918723,0.00227477,88970.0,88969.0,1.16597027]
[1764955918922,0.00227477,88970.0,88969.0,1.14429027]
[1764955919123,0.22706964,88970.0,88969.0,0.90161287]
[1764955919320,0.22706964,88970.0,88969.0,0.91949287]
[1764955919509,0.22706964,88970.0,88969.0,0.91788]
[1764955920120,0.00227477,88970.0,88969.0,0.91788]
[1764955920331,0.00227477,88970.0,88969.0,1.19699027]
[1764955920533,0.00227477,88970.0,88969.0,1.218912]
[1764955920951,0.00227477,88970.0,88969.0,1.19699027]
[1764955921291,0.00227477,88970.0,88969.0,1.28143499]
[1764955921667,0.00227477,88970.0,88969.0,1.28443499]
[1764955921891,0.00227477,88970.0,88969.0,1.28943499]
[1764955922314,0.00227477,88970.0,88969.0,1.28443499]
[1764955922458,0.00227477,88970.0,88969.0,1.59946826]
[1764955922800,0.00227477,88970.0,88969.0,1.62538999]
[1764955923955,0.00227477,88970.0,88969.0,1.62138999]
[1764955924153,0.00227477,88970.0,88969.0,1.62738999]
[1764955924364,0.00227477,88970.0,88969.0,1.63138999]
[1764955924563,0.23593423,89008.0,88979.0,0.63221685]
[1764955924816,0.00031929,88980.0,88979.0,0.70290972]
[1764955925218,0.01143469,89010.0,89009.0,0.22469637]
[1764955925219,0.0002,89010.0,89009.0,0.22469637]
[1764955925417,0.0002,89010.0,89009.0,0.30292097]
[1764955925418,0.00031914,89010.0,89009.0,0.30292097]
[1764955925618,0.00031914,89010.0,89009.0,0.33345097]
[1764955926385,0.00031914,89010.0,89004.0,0.23594401]
[1764955926386,0.22470395,89006.0,89005.0,0.01614]
[1764955927062,0.22470395,89006.0,88998.0,0.01614]
[1764955927063,0.22472162,88999.0,88998.0,0.01614]
[1764955927310,0.22472162,88999.0,88998.0,0.03398]
[1764955927491,0.01123406,89015.0,89007.0,0.01123507]
[1764955927700,0.01123444,89012.0,89007.0,0.01123507]
[1764955927937,0.01123444,89012.0,89004.0,0.01123545]
[1764955927938,0.01155383,89010.0,89004.0,0.01123545]
[1764955928109,0.22469975,89008.0,89005.0,0.22470524]
[1764955928316,0.01123494,89008.0,89005.0,0.01123532]
[1764955928520,0.22469637,89009.0,89005.0,0.01123532]
[1764955928735,0.00031914,89010.0,89009.0,0.54769637]
[1764955928944,0.0002,89030.0,89027.0,0.01123254]
[1764955929185,0.0002,89030.0,89029.0,0.2614559]
[1764955929358,0.0002,89030.0,89029.0,0.29359877]
[1764955929845,0.0002,89030.0,89029.0,0.3155205]
[1764955930405,0.0002,89030.0,89029.0,0.03842287]
[1764955930612,0.08538994,89060.0,89037.0,0.01123128]
[1764955930613,0.01123002,89047.0,89037.0,0.01123128]
[1764955930800,0.01134918,89047.0,89038.0,0.02907115]
[1764955931004,0.00011916,89047.0,89045.0,0.22460552]
[1764955931211,0.00011916,89047.0,89046.0,0.02067]
[1764955931565,0.00011916,89047.0,89046.0,0.05281287]
[1764955931985,0.00267992,89060.0,89057.0,0.01122876]
[1764955932169,0.0002,89090.0,89075.0,0.54752989]
[1764955932323,0.0002,89090.0,89080.0,0.61004027]
[1764955932521,0.00043704,89081.0,89080.0,0.65424487]
[1764955932726,0.00043704,89081.0,89080.0,0.66285314]
[1764955932928,0.00043704,89081.0,89080.0,0.29521015]
[1764955933559,0.0002,89090.0,89089.0,0.2244946]
[1764955933765,0.00031904,89090.0,89089.0,0.64844046]
[1764955933935,0.00031904,89090.0,89089.0,0.31132747]
[1764955934294,0.0002,89100.0,89099.0,0.2869924]
[1764955934457,0.0002,89100.0,89099.0,0.32541527]
[1764955934659,0.0002,89100.0,89099.0,0.377867]